fUSD/lending_fUSD_20240330
["ID","MTS","AMOUNT","RATE_DAILY","PERIOD"]
[321060648,1711841449179,-1215.37,0.00041643,4]
[321060649,1711841449189,-500.0,0.00041643,4]
[321060650,1711841449198,-595.24,0.00041643,4]
[321060651,1711841449207,-3379.16,0.00041643,4]
[321060652,1711841449217,-2968.11,0.00041643,4]
[321060653,1711841449226,-2642.07,0.00041643,4]
[321060654,1711841449236,-791.62,0.00041643,4]
[321060655,1711841449246,-500.0,0.00041643,4]
[321060656,1711841449257,-978.07,0.00041643,4]
[321060657,1711841449267,-2691.79,0.00041643,4]
[321060658,1711841449278,-1291.56,0.00041643,4]
[321060659,1711841449288,-910.48,0.00041643,4]
[321060660,1711841449298,-500.0,0.00041643,4]
[321060661,1711841449308,-3278.44,0.00041643,4]
[321060662,1711841449318,-500.0,0.00041643,4]
[321060663,1711841449328,-906.96,0.00041643,4]
[321060664,1711841449337,-500.0,0.00041643,4]
[321060665,1711841449346,-2601.37,0.00041643,4]
[321060666,1711841449356,-1320.04,0.00041643,4]
[321060667,1711841449365,-500.0,0.00041643,4]
[321060668,1711841449375,-1287.72,0.00041643,4]
[321060669,1711841449384,-500.0,0.00041643,4]
[321060670,1711841449393,-500.0,0.00041643,4]
[321060671,1711841449403,-500.0,0.00041643,4]
[321060672,1711841449413,-500.0,0.00041643,4]
[321060673,1711841449424,-2128.54,0.00041643,4]
[321060674,1711841449436,-3078.27,0.00041643,4]
[321060675,1711841449446,-601.48599439,0.00041643,4]
[321060676,1711841449455,-880.95,0.00041643,4]
[321060677,1711841449466,-744.12,0.00041643,4]
[321060678,1711841449475,-675.44,0.00041643,4]
[321060679,1711841449485,-1850.46,0.00041643,4]
[321060680,1711841449494,-500.0,0.00041643,4]
[321060681,1711841449506,-543.48,0.00041643,4]
[321060682,1711841449515,-500.0,0.00041643,4]
[321060683,1711841449524,-500.0,0.00041643,4]
[321060684,1711841449534,-500.0,0.00041643,4]
[321060685,1711841449544,-584.29,0.00041643,4]
[321060686,1711841449554,-500.0,0.00041643,4]
[321060687,1711841449563,-542.07,0.00041643,4]
[321060688,1711841449573,-1550.24,0.00041643,4]
[321060689,1711841449582,-701.49,0.00041643,4]
[321060690,1711841449591,-3275.41,0.00041643,4]
[321060691,1711841449601,-631.54,0.00041643,4]
[321060692,1711841449611,-1303.78,0.00041643,4]
[321060693,1711841449620,-500.0,0.00041643,4]
[321060694,1711841449629,-575.96,0.00041643,4]
[321060695,1711841449639,-816.98,0.00041643,4]
[321060696,1711841449648,-500.0,0.00041643,4]
[321060697,1711841449658,-500.0,0.00041643,4]
[321060698,1711841449667,-779.18,0.00041643,4]
[321060699,1711841449677,-287.12310861,0.00041643,4]
[321060700,1711841449688,-538.84,0.00041643,4]
[321060701,1711841449697,-1360.46,0.00041643,4]
[321060702,1711841449707,-500.0,0.00041643,4]
[321060703,1711841449716,-727.88,0.00041643,4]
[321060704,1711841449726,-500.0,0.00041643,4]
[321060705,1711841449736,-500.0,0.00041643,4]
[321060706,1711841449745,-575.58,0.00041643,4]
[321060707,1711841449756,-500.0,0.00041643,4]
[321060708,1711841449766,-596.75,0.00041643,4]
[321060709,1711841449775,-229.96132832,0.00041643,4]
[321060710,1711841449785,-678.98,0.00041643,4]
[321060711,1711841449796,-505.13,0.00041643,4]
[321060712,1711841449805,-3367.76,0.00041643,4]
[321060713,1711841449814,-3035.36,0.00041643,4]
[321060714,1711841449823,-500.0,0.00041643,4]
[321060715,1711841449833,-681.5,0.00041643,4]
[321060716,1711841449842,-500.0,0.00041643,4]
[321060717,1711841449852,-500.0,0.00041643,4]
[321060718,1711841449862,-500.0,0.00041643,4]
[321060719,1711841449872,-500.0,0.00041643,4]
[321060720,1711841449882,-957.31,0.00041643,4]
[321060721,1711841449891,-524.58111139,0.00041643,4]
[321060722,1711841450153,-539.4089177,0.00041643,4]
[321060723,1711841450165,-6.52997091,0.00041643,4]
[321060724,1711841450175,-512.76,0.00041643,4]
[321060725,1711841450185,-500.0,0.00041643,4]
[321060726,1711841450195,-387.73297772,0.00041643,4]
[321060727,1711841450204,-500.0,0.00041643,4]
[321060728,1711841450214,-91.34320137,0.00041643,4]
[321060729,1711841450644,-2735.93955623,0.00038402,2]
[321060730,1711841450654,-500.0,0.00041095,4]
[321060731,1711841450665,-4511.66,0.00041369,4]
[321060732,1711841450675,-500.0,0.00041369,4]
[321060733,1711841450685,-408.65679863,0.00041643,4]
[321060734,1711841450695,-2194.2,0.00041643,4]
[321060735,1711841450705,-204.09884784,0.00041643,4]
[321060736,1711841450915,-586.80174524,0.00041643,4]
[321060737,1711841450928,-522.3515315,0.00041643,4]
[321060738,1711841450940,-371.91855114,0.00041643,4]
[321060739,1711841451047,-235.98932428,0.00041643,4]
[321060740,1711841451057,-500.0,0.00041643,4]
[321060741,1711841451067,-500.0,0.00041643,4]
[321060742,1711841451076,-566.98,0.00041643,4]
[321060743,1711841451086,-500.0,0.00041643,4]
[321060744,1711841451096,-718.31,0.00041643,4]
[321060745,1711841451106,-500.0,0.00041643,4]
[321060746,1711841451115,-500.0,0.00041643,4]
[321060747,1711841451125,-3045.78,0.00041643,4]
[321060748,1711841451135,-500.0,0.00041643,4]
[321060749,1711841451145,-500.0,0.00041643,4]
[321060750,1711841451155,-4511.66,0.00041643,4]
[321060751,1711841451165,-500.0,0.00041643,4]
[321060752,1711841451175,-625.8,0.00041643,4]
[321060753,1711841451185,-174.41,0.00041644,120]
[321060754,1711841451196,-511.0,0.00041644,7]
[321060755,1711841451205,-726.711406,0.00041655,30]
[321060756,1711841451215,-1090.06711,0.00041655,30]
[321060757,1711841451225,-5300.0,0.000417,15]
[321060758,1711841451235,-600.0,0.0004178,30]
[321060759,1711841451246,-1000.0,0.000418,15]
[321060760,1711841451257,-275.5,0.000418,3]
[321060761,1711841451267,-2432.24189991,0.00041817,16]
[321060762,1711841451277,-2000.0,0.00041857,5]
[321060763,1711841451287,-171.06879304,0.00041868,2]
[321060764,1711841451296,-2329.82255533,0.00041868,2]
[321060765,1711841451317,-3339.87943909,0.00041868,2]
[321060766,1711841451702,-1507.77199254,0.00041868,2]
[321060767,1711841451712,-401.06930904,0.00041868,2]
[321060768,1711841451721,-817.71733594,0.00041868,2]
[321060769,1711841451730,-7235.4326868,0.00041891,2]
[321060770,1711841451740,-511.62843953,0.00041891,2]
[321060771,1711841451750,-2648.3883783,0.00041891,2]
[321060772,1711841451761,-1000.0,0.00041899,120]
[321060773,1711841451770,-150.01,0.00041899,2]
[321060774,1711841451779,-231.34310253,0.00041899,2]
[321060775,1711841451789,-369500.08457362,0.000419,30]
[321060776,1711841451798,-811.4163116,0.000419,2]
[321060777,1711841451807,-479.0,0.000419,28]
[321060778,1711841451817,-155.81058457,0.000419,30]
[321060779,1711841451826,-1000.0,0.000419,15]
[321060780,1711841451835,-244.77832756,0.000419,2]
[321060781,1711841451845,-244.77832741,0.000419,2]
[321060782,1711841451854,-244.77832741,0.000419,2]
[321060783,1711841451863,-244.77832741,0.000419,2]
[321060784,1711841451873,-244.77832741,0.000419,2]
[321060785,1711841451882,-601.9333,0.000419,11]
[321060786,1711841451891,-244.77832741,0.000419,2]
[321060787,1711841451901,-244.77832741,0.000419,2]
[321060788,1711841451910,-244.77832741,0.000419,2]
[321060789,1711841451920,-244.77832741,0.000419,2]
[321060790,1711841451932,-244.77832741,0.000419,2]
[321060791,1711841451942,-244.77832741,0.000419,2]
[321060792,1711841451951,-244.77832741,0.000419,2]
[321060793,1711841451961,-244.77832741,0.000419,2]
[321060794,1711841451971,-244.77832741,0.000419,2]
[321060795,1711841451982,-244.77832741,0.000419,2]
[321060796,1711841451992,-891.0,0.000419,30]
[321060797,1711841452001,-244.77832741,0.000419,2]
[321060798,1711841452011,-244.77832741,0.000419,2]
[321060799,1711841452021,-244.77832741,0.000419,2]
[321060800,1711841452030,-244.77832741,0.000419,2]
[321060801,1711841452040,-244.77832741,0.000419,2]
[321060802,1711841452049,-2003.2657,0.00041907,5]
[321060803,1711841452058,-2000.0,0.00041907,5]
[321060804,1711841452068,-500.0,0.00041917,4]
[321060805,1711841452077,-500.0,0.00041917,4]
[321060806,1711841452086,-549.240201,0.00041917,4]
[321060807,1711841452095,-500.0,0.00041917,4]
[321060808,1711841452104,-500.0,0.00041917,4]
[321060809,1711841452116,-500.0,0.00041917,4]
[321060810,1711841452125,-500.0,0.00041917,4]
[321060811,1711841452135,-1319.31,0.00041917,2]
[321060812,1711841452144,-403.46045679,0.00041917,4]
[321060813,1711841452153,-500.0,0.00041917,4]
[321060814,1711841452163,-500.0,0.00041917,4]
[321060815,1711841452172,-379.61358662,0.00041917,4]
[321060816,1711841452181,-500.0,0.00041917,4]
[321060817,1711841452191,-500.0,0.00041917,4]
[321060818,1711841452200,-500.0,0.00041917,4]
[321060819,1711841452211,-500.0,0.00041917,4]
[321060820,1711841452221,-450.50395998,0.00041917,4]
[321060821,1711841452230,-500.0,0.00041917,4]
[321060822,1711841452239,-500.0,0.00041917,4]
[321060823,1711841452249,-500.0,0.00041917,4]
[321060824,1711841452260,-500.0,0.00041917,4]
[321060825,1711841452271,-717.8,0.00041917,2]
[321060826,1711841452281,-500.0,0.00041917,4]
[321060827,1711841452289,-500.0,0.00041917,4]
[321060828,1711841452298,-550.23,0.00041917,4]
[321060829,1711841452307,-963.08,0.00041917,4]
[321060830,1711841452316,-500.0,0.00041917,4]
[321060831,1711841452325,-500.0,0.00041917,4]
[321060832,1711841452334,-500.0,0.00041917,4]
[321060833,1711841452343,-500.0,0.00041917,4]
[321060834,1711841452352,-500.0,0.00041917,4]
[321060835,1711841452362,-500.0,0.00041917,4]
[321060836,1711841452371,-500.0,0.00041917,4]
[321060837,1711841452381,-465.79302275,0.00041917,4]
[321060838,1711841452390,-500.0,0.00041917,4]
[321060839,1711841452400,-500.0,0.00041917,4]
[321060840,1711841452409,-500.0,0.00041917,4]
[321060841,1711841452419,-500.0,0.00041917,4]
[321060842,1711841452431,-500.0,0.00041917,4]
[321060843,1711841452440,-500.0,0.00041917,4]
[321060844,1711841452449,-500.0,0.00041917,4]
[321060845,1711841452458,-500.0,0.00041917,4]
[321060846,1711841452468,-645.0466506,0.00041917,4]
[321060847,1711841452478,-500.0,0.00041917,4]
[321060848,1711841452489,-500.0,0.00041917,4]
[321060849,1711841452498,-500.0,0.00041917,4]
[321060850,1711841452511,-500.0,0.00041917,4]
[321060851,1711841452521,-574.08,0.00041917,4]
[321060852,1711841452532,-500.0,0.00041917,4]
[321060853,1711841452542,-500.0,0.00041917,4]
[321060854,1711841452552,-500.0,0.00041917,4]
[321060855,1711841452561,-500.0,0.00041917,4]
[321060856,1711841452570,-500.0,0.00041917,4]
[321060857,1711841452580,-500.0,0.00041917,4]
[321060858,1711841452590,-1486.58,0.00041917,4]
[321060859,1711841452599,-500.0,0.00041917,4]
[321060860,1711841452609,-500.0,0.00041917,4]
[321060861,1711841452618,-500.0,0.00041917,4]
[321060862,1711841452627,-500.0,0.00041917,4]
[321060863,1711841452637,-500.0,0.00041917,4]
[321060864,1711841452646,-500.0,0.00041917,4]
[321060865,1711841452655,-425.58984228,0.00041917,2]
[321060866,1711841452665,-500.0,0.00041917,4]
[321060867,1711841452674,-500.0,0.00041917,4]
[321060868,1711841452682,-500.0,0.00041917,4]
[321060869,1711841452692,-500.0,0.00041917,4]
[321060870,1711841452701,-500.0,0.00041917,4]
[321060871,1711841452710,-500.0,0.00041917,4]
[321060872,1711841452719,-500.0,0.00041917,4]
[321060873,1711841452729,-500.0,0.00041917,4]
[321060874,1711841452737,-500.0,0.00041917,4]
[321060875,1711841452746,-500.0,0.00041917,4]
[321060876,1711841452759,-500.0,0.00041917,4]
[321060877,1711841452767,-187.4609523,0.00041917,4]
[321060878,1711841452777,-403.92782701,0.00041917,4]
[321060879,1711841452786,-500.0,0.00041917,4]
[321060880,1711841452796,-500.0,0.00041917,4]
[321060881,1711841452805,-500.0,0.00041917,4]
[321060882,1711841452815,-649.52,0.00041917,4]
[321060883,1711841452824,-500.0,0.00041917,4]
[321060884,1711841452833,-500.0,0.00041917,4]
[321060885,1711841452843,-539.2,0.00041917,4]
[321060886,1711841452852,-500.0,0.00041917,4]
[321060887,1711841452861,-525.95215012,0.00041917,4]
[321060888,1711841452870,-500.0,0.00041917,4]
[321060889,1711841452879,-500.0,0.00041917,4]
[321060890,1711841452888,-500.0,0.00041917,4]
[321060891,1711841452898,-1068.83,0.00041917,4]
[321060892,1711841452907,-500.0,0.00041917,4]
[321060893,1711841452916,-500.0,0.00041917,4]
[321060894,1711841452925,-510.89,0.00041917,4]
[321060895,1711841452935,-500.0,0.00041917,4]
[321060896,1711841452944,-500.0,0.00041917,4]
[321060897,1711841452953,-500.0,0.00041917,4]
[321060898,1711841452962,-500.0,0.00041917,4]
[321060899,1711841452970,-162.04,0.00041917,4]
[321060900,1711841452979,-1242.35,0.00041917,4]
[321060901,1711841452988,-500.0,0.00041917,4]
[321060902,1711841452997,-500.0,0.00041917,4]
[321060903,1711841453008,-770.02,0.00041917,4]
[321060904,1711841453017,-500.0,0.00041917,4]
[321060905,1711841453026,-500.0,0.00041917,4]
[321060906,1711841453034,-500.0,0.00041917,4]
[321060907,1711841453043,-500.0,0.00041917,4]
[321060908,1711841453052,-500.0,0.00041917,4]
[321060909,1711841453061,-500.0,0.00041917,4]
[321060910,1711841453070,-500.0,0.00041917,4]
[321060911,1711841453079,-500.0,0.00041917,4]
[321060912,1711841453088,-500.0,0.00041917,4]
[321060913,1711841453097,-500.0,0.00041917,4]
[321060914,1711841453107,-500.0,0.00041917,4]
[321060915,1711841453116,-244.61977069,0.00041917,4]
[321060916,1711841453125,-500.0,0.00041917,4]
[321060917,1711841453134,-500.0,0.00041917,4]
[321060918,1711841453143,-500.0,0.00041917,4]
[321060919,1711841453152,-565.56529293,0.00041917,4]
[321060920,1711841453162,-500.0,0.00041917,4]
[321060921,1711841453171,-500.0,0.00041917,4]
[321060922,1711841453180,-501.39,0.00041917,4]
[321060923,1711841453189,-500.0,0.00041917,4]
[321060924,1711841453198,-500.0,0.00041917,4]
[321060925,1711841453207,-500.0,0.00041917,4]
[321060926,1711841453216,-500.0,0.00041917,4]
[321060927,1711841453225,-392.28868977,0.00041917,4]
[321060928,1711841453234,-500.0,0.00041917,4]
[321060929,1711841453243,-194.30921495,0.00041917,4]
[321060930,1711841453253,-500.0,0.00041917,4]
[321060931,1711841453262,-500.0,0.00041917,4]
[321060932,1711841453272,-500.0,0.00041917,4]
[321060933,1711841453281,-528.31,0.00041917,4]
[321060934,1711841453290,-500.0,0.00041917,4]
[321060935,1711841453299,-500.0,0.00041917,4]
[321060936,1711841453308,-500.0,0.00041917,4]
[321060937,1711841453316,-500.0,0.00041917,4]
[321060938,1711841453326,-500.0,0.00041917,4]
[321060939,1711841453335,-500.0,0.00041917,4]
[321060940,1711841453345,-3862.53,0.00041917,4]
[321060941,1711841453353,-500.0,0.00041917,4]
[321060942,1711841453363,-2676.8,0.00041917,4]
[321060943,1711841453372,-1643.73,0.00041917,4]
[321060944,1711841453381,-2432.97,0.00041917,4]
[321060945,1711841453390,-500.0,0.00041917,4]
[321060946,1711841453399,-500.0,0.00041917,4]
[321060947,1711841453408,-1987.86,0.00041917,4]
[321060948,1711841453419,-500.0,0.00041917,4]
[321060949,1711841453429,-500.0,0.00041917,4]
[321060950,1711841453438,-528.1,0.00041917,4]
[321060951,1711841453447,-500.0,0.00041917,4]
[321060952,1711841453456,-500.0,0.00041917,4]
[321060953,1711841453466,-1965.74,0.00041917,4]
[321060954,1711841453475,-500.0,0.00041917,4]
[321060955,1711841453483,-3182.98,0.00041917,4]
[321060956,1711841453492,-500.0,0.00041917,4]
[321060957,1711841453503,-16155.91,0.00041917,4]
[321060958,1711841453512,-500.0,0.00041917,4]
[321060959,1711841453521,-2592.02,0.00041917,4]
[321060960,1711841453531,-500.0,0.00041917,4]
[321060961,1711841453540,-500.0,0.00041917,4]
[321060962,1711841453549,-500.0,0.00041917,4]
[321060963,1711841453558,-500.0,0.00041917,4]
[321060964,1711841453567,-1475.72,0.00041917,4]
[321060965,1711841453576,-1509.89,0.00041917,4]
[321060966,1711841453585,-500.0,0.00041917,4]
[321060967,1711841453594,-173.9440898,0.00041917,4]
[321060968,1711841453603,-536.25547355,0.00041917,4]
[321060969,1711841453612,-500.0,0.00041917,4]
[321060970,1711841453621,-1103.79,0.00041917,4]
[321060971,1711841453631,-500.0,0.00041917,4]
[321060972,1711841453640,-3217.96,0.00041917,4]
[321060973,1711841453649,-939.84,0.00041917,4]
[321060974,1711841453658,-500.0,0.00041917,4]
[321060975,1711841453667,-684.43,0.00041917,4]
[321060976,1711841453676,-1755.02,0.00041917,4]
[321060977,1711841453685,-6013.16,0.00041917,4]
[321060978,1711841453694,-706.28,0.00041917,4]
[321060979,1711841453703,-827.21,0.00041917,4]
[321060980,1711841453712,-500.67,0.00041917,4]
[321060981,1711841453721,-595.14,0.00041917,4]
[321060982,1711841453730,-500.0,0.00041917,4]
[321060983,1711841453739,-500.0,0.00041917,4]
[321060984,1711841453747,-500.0,0.00041917,4]
[321060985,1711841453758,-1795.09,0.00041917,4]
[321060986,1711841453767,-546.11,0.00041917,4]
[321060987,1711841453775,-609.22,0.00041917,4]
[321060988,1711841453785,-500.0,0.00041917,4]
[321060989,1711841453794,-1219.02,0.00041917,4]
[321060990,1711841453803,-557.38,0.00041917,4]
[321060991,1711841453812,-1895.78,0.00041917,4]
[321060992,1711841453821,-444.16991261,0.00041917,4]
[321060993,1711841453830,-500.0,0.00041917,4]
[321060994,1711841453839,-500.0,0.00041917,4]
[321060995,1711841453848,-2094.04,0.00041917,4]
[321060996,1711841453857,-500.0,0.00041917,4]
[321060997,1711841453866,-4872.92,0.00041917,4]
[321060998,1711841453875,-2509.66,0.00041917,4]
[321060999,1711841453884,-657.13,0.00041917,4]
[321061000,1711841453893,-500.0,0.00041917,4]
[321061001,1711841453902,-500.0,0.00041917,4]
[321061002,1711841453912,-1576.85,0.00041917,4]
[321061003,1711841453921,-500.0,0.00041917,4]
[321061004,1711841453930,-636.2,0.00041917,4]
[321061005,1711841453939,-1511.51,0.00041917,4]
[321061006,1711841453948,-500.0,0.00041917,4]
[321061007,1711841453957,-516.67,0.00041917,4]
[321061008,1711841453966,-806.1,0.00041917,4]
[321061009,1711841453976,-500.0,0.00041917,4]
[321061010,1711841453985,-10277.84,0.00041917,4]
[321061011,1711841453995,-1270.72,0.00041917,4]
[321061012,1711841454005,-500.0,0.00041917,4]
[321061013,1711841454013,-884.99,0.00041917,4]
[321061014,1711841454022,-500.0,0.00041917,4]
[321061015,1711841454032,-500.0,0.00041917,4]
[321061016,1711841454042,-967.71,0.00041917,4]
[321061017,1711841454051,-500.0,0.00041917,4]
[321061018,1711841454061,-500.0,0.00041917,4]
[321061019,1711841454070,-1140.08,0.00041917,4]
[321061020,1711841454079,-678.36,0.00041917,4]
[321061021,1711841454089,-1455.83,0.00041917,4]
[321061022,1711841454099,-500.0,0.00041917,4]
[321061023,1711841454108,-906.66,0.00041917,4]
[321061024,1711841454118,-2362.31,0.00041917,4]
[321061025,1711841454128,-500.0,0.00041917,4]
[321061026,1711841454137,-1215.37,0.00041917,4]
[321061027,1711841454147,-500.0,0.00041917,4]
[321061028,1711841454156,-595.24,0.00041917,4]
[321061029,1711841454166,-3379.16,0.00041917,4]
[321061030,1711841454175,-2968.11,0.00041917,4]
[321061031,1711841454185,-2642.07,0.00041917,4]
[321061032,1711841454194,-791.62,0.00041917,4]
[321061033,1711841454203,-500.0,0.00041917,4]
[321061034,1711841454212,-978.07,0.00041917,4]
[321061035,1711841454222,-2691.79,0.00041917,4]
[321061036,1711841454231,-1291.56,0.00041917,4]
[321061037,1711841454241,-500.0,0.00041917,4]
[321061038,1711841454251,-910.48,0.00041917,4]
[321061039,1711841454261,-3278.44,0.00041917,4]
[321061040,1711841454271,-500.0,0.00041917,4]
[321061041,1711841454283,-906.96,0.00041917,4]
[321061042,1711841454293,-500.0,0.00041917,4]
[321061043,1711841454303,-2601.37,0.00041917,4]
[321061044,1711841454313,-1320.04,0.00041917,4]
[321061045,1711841454323,-500.0,0.00041917,4]
[321061046,1711841454333,-1287.72,0.00041917,4]
[321061047,1711841454342,-500.0,0.00041917,4]
[321061048,1711841454351,-500.0,0.00041917,4]
[321061049,1711841454362,-500.0,0.00041917,4]
[321061050,1711841454371,-500.0,0.00041917,4]
[321061051,1711841454381,-2128.54,0.00041917,4]
[321061052,1711841454391,-3078.27,0.00041917,4]
[321061053,1711841454400,-880.95,0.00041917,4]
[321061054,1711841454409,-744.12,0.00041917,4]
[321061055,1711841454418,-675.44,0.00041917,4]
[321061056,1711841454430,-1850.46,0.00041917,4]
[321061057,1711841454440,-500.0,0.00041917,4]
[321061058,1711841454450,-543.48,0.00041917,4]
[321061059,1711841454459,-500.0,0.00041917,4]
[321061060,1711841454468,-500.0,0.00041917,4]
[321061061,1711841454479,-500.0,0.00041917,4]
[321061062,1711841454489,-584.29,0.00041917,4]
[321061063,1711841454499,-500.0,0.00041917,4]
[321061064,1711841454510,-542.07,0.00041917,4]
[321061065,1711841454519,-1550.24,0.00041917,4]
[321061066,1711841454529,-701.49,0.00041917,4]
[321061067,1711841454538,-3275.41,0.00041917,4]
[321061068,1711841454547,-631.54,0.00041917,4]
[321061069,1711841454556,-1303.78,0.00041917,4]
[321061070,1711841454565,-500.0,0.00041917,4]
[321061071,1711841454574,-575.96,0.00041917,4]
[321061072,1711841454584,-816.98,0.00041917,4]
[321061073,1711841454593,-500.0,0.00041917,4]
[321061074,1711841454602,-500.0,0.00041917,4]
[321061075,1711841454611,-779.18,0.00041917,4]
[321061076,1711841454620,-538.84,0.00041917,4]
[321061077,1711841454629,-1360.46,0.00041917,4]
[321061078,1711841454638,-500.0,0.00041917,4]
[321061079,1711841454813,-727.88,0.00041917,4]
[321061080,1711841454823,-500.0,0.00041917,4]
[321061081,1711841454833,-575.58,0.00041917,4]
[321061082,1711841454844,-500.0,0.00041917,4]
[321061083,1711841454854,-500.0,0.00041917,4]
[321061084,1711841454865,-596.75,0.00041917,4]
[321061085,1711841454876,-678.98,0.00041917,4]
[321061086,1711841454886,-505.13,0.00041917,4]
[321061087,1711841454897,-3367.76,0.00041917,4]
[321061088,1711841454907,-3035.36,0.00041917,4]
[321061089,1711841454918,-500.0,0.00041917,4]
[321061090,1711841454929,-681.5,0.00041917,4]
[321061091,1711841454939,-500.0,0.00041917,4]
[321061092,1711841454950,-500.0,0.00041917,4]
[321061093,1711841454960,-500.0,0.00041917,4]
[321061094,1711841454970,-957.31,0.00041917,4]
[321061095,1711841454979,-500.0,0.00041917,4]
[321061096,1711841454989,-512.76,0.00041917,4]
[321061097,1711841454999,-1070.52,0.00041917,4]
[321061098,1711841455015,-500.0,0.00041917,4]
[321061099,1711841455024,-642.54107071,0.00041917,4]
[321061100,1711841455034,-500.0,0.00041917,4]
[321061101,1711841455044,-2194.2,0.00041917,4]
[321061102,1711841455054,-1921.16,0.00041917,4]
[321061103,1711841455066,-500.0,0.00041917,4]
[321061104,1711841455076,-500.0,0.00041917,4]
[321061105,1711841455086,-566.98,0.00041917,4]
[321061106,1711841455096,-615.48009533,0.00041917,4]
[321061107,1711841455106,-718.31,0.00041917,4]
[321061108,1711841455116,-500.0,0.00041917,4]
[321061109,1711841455128,-525.65139715,0.00041917,4]
[321061110,1711841455138,-3045.78,0.00041917,4]
[321061111,1711841455149,-500.0,0.00041917,4]
[321061112,1711841455160,-500.0,0.00041917,4]
[321061113,1711841455170,-4511.66,0.00041917,4]
[321061114,1711841455180,-500.0,0.00041917,4]
[321061115,1711841455190,-625.8,0.00041917,4]
[321061116,1711841455200,-457.0,0.0004192,15]
[321061117,1711841455210,-6046.1212254,0.00041921,2]
[321061118,1711841455220,-4856.8097639,0.00041921,2]
[321061119,1711841455230,-2205.7979031,0.00041921,2]
[321061120,1711841455239,-1763.207428,0.00041921,2]
[321061121,1711841455249,-1505.73175969,0.00041923,2]
[321061122,1711841455269,-569.35964304,0.00041923,2]
[321061123,1711841455279,-5419.31665658,0.00041926,2]
[321061124,1711841455288,-161.80052494,0.00041929,30]
[321061125,1711841455298,-457.0,0.0004193,15]
[321061126,1711841455308,-228.96100728,0.00041934,55]
[321061127,1711841455317,-995.22784944,0.00041935,2]
[321061128,1711841455326,-995.22784944,0.00041935,2]
[321061129,1711841455336,-995.22784944,0.00041935,2]
[321061130,1711841455345,-995.22784944,0.00041935,2]
[321061131,1711841455354,-995.22784944,0.00041935,2]
[321061132,1711841455364,-995.22784944,0.00041935,2]
[321061133,1711841455373,-995.22784944,0.00041935,2]
[321061134,1711841455382,-995.22784944,0.00041935,2]
[321061135,1711841455391,-995.22784944,0.00041935,2]
[321061136,1711841455400,-995.22784944,0.00041935,2]
[321061137,1711841455410,-995.22784944,0.00041935,2]
[321061138,1711841455424,-995.22784944,0.00041935,2]
[321061139,1711841455433,-995.22784944,0.00041935,2]
[321061140,1711841455442,-995.22784944,0.00041935,2]
[321061141,1711841455451,-995.22784944,0.00041935,2]
[321061142,1711841455460,-995.22784944,0.00041935,2]
[321061143,1711841455470,-995.22784944,0.00041935,2]
[321061144,1711841455479,-995.22784944,0.00041935,2]
[321061145,1711841455488,-995.22784944,0.00041935,2]
[321061146,1711841455498,-995.72,0.00041935,2]
[321061147,1711841455514,-559.20818825,0.00041935,2]